[Event "Austria Championship Blitz 2024"]
[Site "Innsbruck"]
[Date "2024.06.01"]
[Round "2.5"]
[White "Platzgummer, Fabian"]
[Black "Vrban, Damir"]
[Result "1-0"]
[ECO "C41"]
[WhiteElo "2311"]
[BlackElo "2151"]
[Annotator "RC"]
[PlyCount "89"]
[EventDate "2024.06.01"]
[EventType "swiss"]
[EventCountry "AUT"]
[SourceTitle "playchess.com"]
[Source "ChessBase"]
[SourceQuality "1"]
[TimeControl "180+2"]

1. Nf3 {[%emt 0:00:02]} Nc6 {[%emt 0:00:03]} 2. d4 {[%emt 0:00:04]} d6 {[%emt 0:00:03]} 3. e4 {[%emt 0:00:03]} Nf6 {[%emt 0:00:39]} 4. Nc3 {[%emt 0:00:06]} e5 {[%emt 0:00:14]} 5. dxe5 {[%emt 0:00:08]} Nxe5 {[%emt 0:00:12]} 6. Nxe5 {[%emt 0:00:26]} dxe5 {[%emt 0:00:02]} 7. Qxd8+ {[%emt 0:00:01]} Kxd8 {[%emt 0:00:00]} 8. Bc4 {[%emt 0:00:02]} Be6 {[%emt 0:00:09]} 9. Bxe6 {[%emt 0:00:12]} fxe6 {[%emt 0:00:01]} 10. Bg5 {[%emt 0:00:10]} Bd6 {[%emt 0:00:10]} 11. O-O-O {[%emt 0:00:05]} Ke7 {[%emt 0:00:01]} 12. Rhe1 {[%emt 0:00:10]} h6 {[%emt 0:00:17]} 13. Bxf6+ {[%emt 0:00:16]} gxf6 {[%emt 0:00:04]} 14. Rd3 {[%emt 0:00:04]} a6 {[%emt 0:00:29]} 15. Red1 {[%emt 0:00:15]} Rag8 {[%emt 0:00:04]} 16. g3 {[%emt 0:00:01]} h5 {[%emt 0:00:00]} 17. h4 {[%emt 0:00:11]} f5 {[%emt 0:00:08]} 18. Re1 {[%emt 0:00:28]} Rg4 {[%emt 0:00:08]} 19. Rf3 {[%emt 0:00:12]} Rf8 {[%emt 0:00:09]} 20. exf5 {[%emt 0:00:03]} Rxf5 {[%emt 0:00:12]} 21. Nd5+ {[%emt 0:00:04]} Kf7 {[%emt 0:00:11]} 22. Rxf5+ {[%emt 0:00:01]} exf5 {[%emt 0:00:01]} 23. Ne3 {[%emt 0:00:02]} Re4 {[%emt 0:00:06]} 24. f3 {[%emt 0:00:07]} Ra4 {[%emt 0:00:10]} 25. Nxf5 {[%emt 0:00:08]} Rxa2 {[%emt 0:00:02]} 26. c3 {[%emt 0:00:09]} Ra4 {[%emt 0:00:08]} 27. Kc2 {[%emt 0:00:06]} Rc4 {[%emt 0:00:03]} 28. Re4 {[%emt 0:00:04]} Rc6 {[%emt 0:00:02]} 29. g4 {[%emt 0:00:05]} hxg4 {[%emt 0:00:01]} 30. fxg4 {[%emt 0:00:00]} Kf6 {[%emt 0:00:02]} 31. Ne3 {[%emt 0:00:04]} Kg6 {[%emt 0:00:05]} 32. Nd5 {[%emt 0:00:03]} b5 {[%emt 0:00:04]} 33. Kd3 {[%emt 0:00:01]} a5 {[%emt 0:00:02]} 34. Re1 {[%emt 0:00:04]} Ra6 {[%emt 0:00:01]} 35. Rf1 {[%emt 0:00:04]} a4 {[%emt 0:00:01]} 36. Ne3 {[%emt 0:00:05]} a3 {[%emt 0:00:02]} 37. bxa3 {[%emt 0:00:01]} Rxa3 {[%emt 0:00:01]} 38. h5+ {[%emt 0:00:02]} Kg7 {[%emt 0:00:02]} 39. g5 {[%emt 0:00:03]} b4 {[%emt 0:00:02]} 40. Nf5+ {[%emt 0:00:02]} Kg8 {[%emt 0:00:02]} 41. Nh6+ {[%emt 0:00:02]} Kg7 {[%emt 0:00:01]} 42. Rf7+ {[%emt 0:00:00]} Kh8 {[%emt 0:00:01]} 43. g6 {[%emt 0:00:02]} Rxc3+ {[%emt 0:00:02]} 44. Ke4 {[%emt 0:00:00]} Rh3 {[%emt 0:00:04]} 45. Rh7# {[%emt 0:00:02]} 1-0

[Event "Austria Championship Blitz 2024"]
[Site "Innsbruck"]
[Date "2024.06.01"]
[Round "2.6"]
[White "Gschiel, Alexander"]
[Black "Lerch, Johannes"]
[Result "0-1"]
[ECO "A54"]
[WhiteElo "2355"]
[BlackElo "2208"]
[Annotator "RC"]
[PlyCount "84"]
[EventDate "2024.06.01"]
[EventType "swiss"]
[EventCountry "AUT"]
[SourceTitle "playchess.com"]
[Source "ChessBase"]
[SourceQuality "1"]
[TimeControl "180+2"]

1. d4 {[%emt 0:00:02]} Nf6 {[%emt 0:00:00]} 2. c4 {[%emt 0:00:01]} d6 {[%emt 0:00:01]} 3. Nf3 {[%emt 0:00:01]} Nbd7 {[%emt 0:00:05]} 4. Nc3 {[%emt 0:00:06]} e5 {[%emt 0:00:01]} 5. e3 {[%emt 0:00:11]} Be7 {[%emt 0:00:01]} 6. b3 {[%emt 0:00:01]} O-O {[%emt 0:00:03]} 7. Bb2 {[%emt 0:00:01]} c6 {[%emt 0:00:03]} 8. Be2 {[%emt 0:00:01]} Re8 {[%emt 0:00:02]} 9. O-O {[%emt 0:00:02]} Qc7 {[%emt 0:00:02]} 10. Qc2 {[%emt 0:00:07]} a5 {[%emt 0:00:07]} 11. Rac1 {[%emt 0:00:02]} exd4 {[%emt 0:00:07]} 12. exd4 {[%emt 0:00:04]} Nf8 {[%emt 0:00:05]} 13. d5 {[%emt 0:00:05]} Bg4 {[%emt 0:00:05]} 14. h3 {[%emt 0:00:08]} Bh5 {[%emt 0:00:01]} 15. dxc6 {[%emt 0:00:13]} bxc6 {[%emt 0:00:02]} 16. Nd4 {[%emt 0:00:01]} Bg6 {[%emt 0:00:05]} 17. Bd3 {[%emt 0:00:03]} N8d7 {[%emt 0:00:11]} 18. Nf5 {[%emt 0:00:14]} Bf8 {[%emt 0:00:06]} 19. Nh4 {[%emt 0:00:28]} Nc5 {[%emt 0:00:12]} 20. Nxg6 {[%emt 0:00:03]} hxg6 {[%emt 0:00:01]} 21. Ba3 {[%emt 0:00:06]} Nfd7 {[%emt 0:00:10]} 22. Ne4 {[%emt 0:00:07]} Nxe4 {[%emt 0:00:25]} 23. Bxe4 {[%emt 0:00:02]} d5 {[%emt 0:00:41]} 24. Bxf8 {[%emt 0:00:02]} dxe4 {[%emt 0:00:02]} 25. Ba3 {[%emt 0:00:01]} a4 {[%emt 0:00:11]} 26. Bb2 {[%emt 0:00:16]} axb3 {[%emt 0:00:08]} 27. axb3 {[%emt 0:01:28]} Nf6 {[%emt 0:00:02]} 28. Rfe1 {[%emt 0:00:00]} Qf4 {[%emt 0:00:06]} 29. g3 {[%emt 0:00:00]} Qf5 {[%emt 0:00:04]} 30. h4 {[%emt 0:00:00]} Rad8 {[%emt 0:00:10]} 31. b4 {[%emt 0:00:00]} Rd3 {[%emt 0:00:21]} 32. Rcd1 {[%emt 0:00:00]} Red8 {[%emt 0:00:02]} 33. Rxd3 {[%emt 0:00:00]} exd3 {[%emt 0:00:04]} 34. Qb3 {[%emt 0:00:00]} d2 {[%emt 0:00:04]} 35. Rd1 {[%emt 0:00:00]} Ne4 {[%emt 0:00:01]} 36. Qe3 {[%emt 0:00:01]} Qg4 {[%emt 0:00:06]} 37. f3 {[%emt 0:00:08]} Qxg3+ {[%emt 0:00:01]} 38. Kf1 {[%emt 0:00:00]} Qh3+ {[%emt 0:00:07]} 39. Kg1 {[%emt 0:00:05]} Ng3 {[%emt 0:00:05]} 40. Rxd2 {[%emt 0:00:01]} Rxd2 {[%emt 0:00:07]} 41. Qxd2 {[%emt 0:00:03]} Qh1+ {[%emt 0:00:04]} 42. Kf2 {[%emt 0:00:01]} Qh2+ {[%emt 0:00:01]} 0-1

[Event "Austria Championship Blitz 2024"]
[Site "Innsbruck"]
[Date "2024.06.01"]
[Round "2.8"]
[White "Froewis, Annika"]
[Black "Kruckenhauser, Arthur"]
[Result "1/2-1/2"]
[ECO "A45"]
[WhiteElo "2075"]
[BlackElo "2340"]
[Annotator "RC"]
[PlyCount "116"]
[EventDate "2024.06.01"]
[EventType "swiss"]
[EventCountry "AUT"]
[SourceTitle "playchess.com"]
[Source "ChessBase"]
[SourceQuality "1"]
[TimeControl "180+2"]

1. d4 {[%emt 0:00:01]} Nf6 {[%emt 0:00:01]} 2. Bf4 {[%emt 0:00:01]} c5 {[%emt 0:00:01]} 3. d5 {[%emt 0:00:01]} d6 {[%emt 0:00:02]} 4. c4 {[%emt 0:00:05]} b5 {[%emt 0:00:06]} 5. Nc3 {[%emt 0:00:23]} bxc4 {[%emt 0:00:03]} 6. e4 {[%emt 0:00:01]} g6 {[%emt 0:00:01]} 7. Bxc4 {[%emt 0:00:04]} Bg7 {[%emt 0:00:01]} 8. Qd2 {[%emt 0:00:12]} Nbd7 {[%emt 0:00:05]} 9. a4 {[%emt 0:00:05]} Rb8 {[%emt 0:00:07]} 10. Rb1 {[%emt 0:00:29]} Qa5 {[%emt 0:00:31]} 11. Nf3 {[%emt 0:00:15]} Nh5 {[%emt 0:00:03]} 12. Nb5 {[%emt 0:00:32]} Qxd2+ {[%emt 0:00:20]} 13. Bxd2 {[%emt 0:00:02]} Nb6 {[%emt 0:00:37]} 14. b3 {[%emt 0:00:32]} Nxc4 {[%emt 0:00:51]} 15. bxc4 {[%emt 0:00:03]} O-O {[%emt 0:00:02]} 16. Ke2 {[%emt 0:00:16]} a6 {[%emt 0:00:04]} 17. Na7 {[%emt 0:00:13]} Bd7 {[%emt 0:00:02]} 18. a5 {[%emt 0:00:11]} f5 {[%emt 0:00:19]} 19. exf5 {[%emt 0:00:06]} gxf5 {[%emt 0:00:01]} 20. Rb6 {[%emt 0:00:04]} Nf6 {[%emt 0:00:18]} 21. Rhb1 {[%emt 0:00:08]} Ra8 22. Nc6 {[%emt 0:00:00]} Rfe8 {[%emt 0:00:04]} 23. Rb7 {[%emt 0:00:00]} Kf7 {[%emt 0:00:04]} 24. Ng5+ {[%emt 0:00:01]} Kg6 {[%emt 0:00:01]} 25. Ne6 {[%emt 0:00:02]} Bxe6 {[%emt 0:00:01]} 26. dxe6 {[%emt 0:00:01]} Ng8 {[%emt 0:00:02]} 27. Rc7 {[%emt 0:00:02]} Bf6 {[%emt 0:00:02]} 28. Rbb7 {[%emt 0:00:02]} f4 {[%emt 0:00:01]} 29. Bxf4 {[%emt 0:00:08]} Kf5 30. Be3 {[%emt 0:00:00]} Kxe6 {[%emt 0:00:01]} 31. f4 {[%emt 0:00:00]} Nh6 {[%emt 0:00:05]} 32. h3 {[%emt 0:00:00]} Nf5 {[%emt 0:00:01]} 33. Bf2 {[%emt 0:00:01]} h5 {[%emt 0:00:04]} 34. g4 {[%emt 0:00:02]} hxg4 {[%emt 0:00:01]} 35. hxg4 {[%emt 0:00:01]} Nd4+ {[%emt 0:00:04]} 36. Bxd4 {[%emt 0:00:02]} Bxd4 {[%emt 0:00:03]} 37. Rxe7+ {[%emt 0:00:02]} Rxe7 {[%emt 0:00:01]} 38. Rxe7+ {[%emt 0:00:01]} Kf6 {[%emt 0:00:00]} 39. g5+ {[%emt 0:00:01]} Kf5 {[%emt 0:00:01]} 40. Rf7+ {[%emt 0:00:02]} Kg6 {[%emt 0:00:01]} 41. Rd7 {[%emt 0:00:04]} Kf5 {[%emt 0:00:04]} 42. Rxd6 {[%emt 0:00:03]} Kxf4 {[%emt 0:00:02]} 43. g6 {[%emt 0:00:03]} Re8+ {[%emt 0:00:05]} 44. Kd2 {[%emt 0:00:02]} Be3+ {[%emt 0:00:03]} 45. Kd3 {[%emt 0:00:01]} Bc1 {[%emt 0:00:02]} 46. g7 {[%emt 0:00:02]} Rg8 {[%emt 0:00:01]} 47. Rg6 {[%emt 0:00:02]} Bb2 {[%emt 0:00:01]} 48. Ne7 {[%emt 0:00:02]} Rxg7 {[%emt 0:00:01]} 49. Rxg7 {[%emt 0:00:03]} Bxg7 {[%emt 0:00:09]} 50. Nd5+ {[%emt 0:00:03]} Ke5 {[%emt 0:00:00]} 51. Nc7 {[%emt 0:00:01]} Kd6 {[%emt 0:00:00]} 52. Nxa6 {[%emt 0:00:02]} Kc6 {[%emt 0:00:00]} 53. Nb8+ {[%emt 0:00:02]} Kc7 {[%emt 0:00:01]} 54. Na6+ {[%emt 0:00:03]} Kc6 {[%emt 0:00:01]} 55. Ke4 {[%emt 0:00:01]} Bc3 {[%emt 0:00:02]} 56. Kf5 {[%emt 0:00:04]} Bxa5 {[%emt 0:00:01]} 57. Ke6 {[%emt 0:00:01]} Be1 {[%emt 0:00:05]} 58. Nxc5 {[%emt 0:00:03]} Kxc5 {[%emt 0:00:01]} 1/2-1/2

[Event "Austria Championship Blitz 2024"]
[Site "Innsbruck"]
[Date "2024.06.01"]
[Round "2.9"]
[White "Balint, Peter"]
[Black "Keferboeck, Jewgeni"]
[Result "1-0"]
[ECO "B90"]
[WhiteElo "2343"]
[BlackElo "1957"]
[Annotator "RC"]
[PlyCount "63"]
[EventDate "2024.06.01"]
[EventType "swiss"]
[EventCountry "AUT"]
[SourceTitle "playchess.com"]
[Source "ChessBase"]
[SourceQuality "1"]
[TimeControl "180+2"]

1. e4 {[%emt 0:00:01]} c5 {[%emt 0:00:00]} 2. Nf3 {[%emt 0:00:01]} d6 {[%emt 0:00:01]} 3. d4 {[%emt 0:00:00]} cxd4 {[%emt 0:00:01]} 4. Nxd4 {[%emt 0:00:01]} Nf6 {[%emt 0:00:01]} 5. Nc3 {[%emt 0:00:01]} a6 {[%emt 0:00:01]} 6. f3 {[%emt 0:00:00]} e5 {[%emt 0:00:01]} 7. Nb3 {[%emt 0:00:01]} Be7 {[%emt 0:00:01]} 8. Be3 {[%emt 0:00:02]} Be6 {[%emt 0:00:02]} 9. Qd2 {[%emt 0:00:00]} O-O {[%emt 0:00:01]} 10. O-O-O {[%emt 0:00:03]} a5 {[%emt 0:00:01]} 11. a4 {[%emt 0:00:04]} Nc6 {[%emt 0:00:01]} 12. Kb1 {[%emt 0:00:09]} Nb4 {[%emt 0:00:01]} 13. g4 {[%emt 0:00:06]} d5 {[%emt 0:00:01]} 14. g5 {[%emt 0:00:28]} Nxe4 {[%emt 0:00:02]} 15. fxe4 {[%emt 0:00:15]} d4 {[%emt 0:00:00]} 16. Nxd4 {[%emt 0:00:26]} exd4 {[%emt 0:00:02]} 17. Qxd4 {[%emt 0:00:02]} Bxg5 {[%emt 0:00:23]} 18. Rg1 {[%emt 0:00:14]} Qxd4 {[%emt 0:00:11]} 19. Bxd4 {[%emt 0:00:02]} f6 {[%emt 0:00:11]} 20. b3 {[%emt 0:00:23]} Nc6 {[%emt 0:00:09]} 21. Bb6 {[%emt 0:00:05]} Bf4 {[%emt 0:00:32]} 22. h4 {[%emt 0:00:32]} Rfe8 {[%emt 0:00:20]} 23. Nd5 {[%emt 0:00:05]} Bxd5 {[%emt 0:00:09]} 24. exd5 {[%emt 0:00:03]} Ne5 {[%emt 0:00:05]} 25. d6 {[%emt 0:00:04]} Nd7 {[%emt 0:00:03]} 26. Bc7 {[%emt 0:00:03]} Kf8 {[%emt 0:00:12]} 27. Bb5 {[%emt 0:00:05]} Rad8 {[%emt 0:00:14]} 28. Rde1 {[%emt 0:00:23]} Be5 {[%emt 0:00:05]} 29. Rgf1 {[%emt 0:00:02]} Kf7 {[%emt 0:00:04]} 30. Bxd8 {[%emt 0:00:03]} Rxd8 {[%emt 0:00:01]} 31. Bxd7 {[%emt 0:00:01]} Rxd7 {[%emt 0:00:01]} 32. Rxe5 {[%emt 0:00:01]} 1-0

[Event "Austria Championship Blitz 2024"]
[Site "Innsbruck"]
[Date "2024.06.01"]
[Round "2.10"]
[White "Cafasso, Elia"]
[Black "Kranzl, Peter"]
[Result "0-1"]
[ECO "B06"]
[WhiteElo "2178"]
[BlackElo "2157"]
[Annotator "RC"]
[PlyCount "84"]
[EventDate "2024.06.01"]
[EventType "swiss"]
[EventCountry "AUT"]
[SourceTitle "playchess.com"]
[Source "ChessBase"]
[SourceQuality "1"]
[TimeControl "180+2"]

1. e4 {[%emt 0:00:02]} c6 {[%emt 0:00:01]} 2. d4 {[%emt 0:00:01]} d6 {[%emt 0:00:01]} 3. Nf3 {[%emt 0:00:02]} Nf6 {[%emt 0:00:01]} 4. Nc3 {[%emt 0:00:02]} g6 {[%emt 0:00:02]} 5. a4 {[%emt 0:00:01]} Bg7 {[%emt 0:00:01]} 6. Bd3 {[%emt 0:00:02]} O-O {[%emt 0:00:02]} 7. O-O {[%emt 0:00:01]} Nbd7 {[%emt 0:00:01]} 8. e5 {[%emt 0:00:10]} dxe5 {[%emt 0:00:06]} 9. dxe5 {[%emt 0:00:02]} Ng4 {[%emt 0:00:07]} 10. e6 {[%emt 0:00:09]} fxe6 {[%emt 0:00:01]} 11. Qe2 {[%emt 0:00:20]} Nde5 {[%emt 0:00:10]} 12. Be4 {[%emt 0:00:13]} Nxf3+ {[%emt 0:00:11]} 13. Bxf3 {[%emt 0:00:01]} Ne5 {[%emt 0:00:01]} 14. Be4 {[%emt 0:00:02]} a5 {[%emt 0:00:08]} 15. Be3 {[%emt 0:00:05]} Qc7 {[%emt 0:00:05]} 16. Rad1 {[%emt 0:00:04]} Nf7 {[%emt 0:00:02]} 17. Rd2 {[%emt 0:00:07]} Nd6 {[%emt 0:00:04]} 18. Bf3 {[%emt 0:00:05]} Nf5 {[%emt 0:00:03]} 19. Rfd1 {[%emt 0:00:08]} e5 {[%emt 0:00:08]} 20. Be4 {[%emt 0:00:34]} Nd4 {[%emt 0:00:10]} 21. Qe1 {[%emt 0:00:04]} Bf5 {[%emt 0:00:06]} 22. f3 {[%emt 0:00:06]} Rad8 {[%emt 0:00:05]} 23. Qg3 {[%emt 0:00:12]} Qb6 {[%emt 0:00:07]} 24. Bxf5 {[%emt 0:00:04]} gxf5 {[%emt 0:00:05]} 25. Bxd4 {[%emt 0:00:16]} exd4 {[%emt 0:00:05]} 26. Ne2 {[%emt 0:00:02]} e5 {[%emt 0:00:09]} 27. Kh1 {[%emt 0:00:02]} c5 {[%emt 0:00:03]} 28. b3 {[%emt 0:00:01]} Qg6 {[%emt 0:00:02]} 29. Qh3 {[%emt 0:00:04]} Bh6 {[%emt 0:00:04]} 30. Rd3 {[%emt 0:00:04]} Be3 {[%emt 0:00:07]} 31. Ng3 {[%emt 0:00:04]} e4 {[%emt 0:00:06]} 32. fxe4 {[%emt 0:00:17]} fxe4 {[%emt 0:00:02]} 33. R3d2 {[%emt 0:00:03]} Bxd2 {[%emt 0:00:02]} 34. Rxd2 {[%emt 0:00:01]} e3 {[%emt 0:00:07]} 35. Rd1 {[%emt 0:00:01]} Rf2 {[%emt 0:00:05]} 36. Qh4 {[%emt 0:00:02]} Rdf8 {[%emt 0:00:02]} 37. h3 {[%emt 0:00:07]} e2 {[%emt 0:00:04]} 38. Re1 {[%emt 0:00:08]} Qxc2 {[%emt 0:00:07]} 39. Qg5+ {[%emt 0:00:06]} Qg6 {[%emt 0:00:02]} 40. Qd5+ {[%emt 0:00:03]} Kh8 {[%emt 0:00:05]} 41. Nxe2 {[%emt 0:00:07]} Re8 {[%emt 0:00:19]} 42. Qxc5 {[%emt 0:00:10]} Qxg2# {[%emt 0:00:03]} 0-1

[Event "Austria Championship Blitz 2024"]
[Site "Innsbruck"]
[Date "2024.06.01"]
[Round "2.11"]
[White "Schnegg, Anna-Lena"]
[Black "Erhard, Jakob"]
[Result "0-1"]
[ECO "E06"]
[WhiteElo "2124"]
[BlackElo "2057"]
[Annotator "RC"]
[PlyCount "96"]
[EventDate "2024.06.01"]
[EventType "swiss"]
[EventCountry "AUT"]
[SourceTitle "playchess.com"]
[Source "ChessBase"]
[SourceQuality "1"]
[TimeControl "180+2"]

1. c4 {[%emt 0:00:01]} e6 {[%emt 0:00:00]} 2. g3 {[%emt 0:00:03]} d5 {[%emt 0:00:01]} 3. cxd5 {[%emt 0:00:01]} exd5 {[%emt 0:00:00]} 4. Bg2 {[%emt 0:00:01]} Nf6 {[%emt 0:00:01]} 5. d4 {[%emt 0:00:03]} Be7 {[%emt 0:00:02]} 6. Nf3 {[%emt 0:00:01]} O-O {[%emt 0:00:01]} 7. O-O {[%emt 0:00:02]} c6 {[%emt 0:00:01]} 8. Nc3 {[%emt 0:00:01]} Bf5 {[%emt 0:00:01]} 9. Bf4 {[%emt 0:00:09]} h6 {[%emt 0:00:01]} 10. Ne5 {[%emt 0:00:06]} Nbd7 {[%emt 0:00:01]} 11. Qd2 {[%emt 0:00:04]} Nxe5 {[%emt 0:00:05]} 12. Bxe5 {[%emt 0:00:25]} Re8 {[%emt 0:00:08]} 13. Rad1 {[%emt 0:00:08]} Bb4 {[%emt 0:03:06]} 14. Qf4 {[%emt 0:00:17]} Bg6 {[%emt 0:00:00]} 15. a3 {[%emt 0:00:26]} Bxc3 {[%emt 0:00:00]} 16. bxc3 {[%emt 0:00:02]} Nd7 {[%emt 0:00:00]} 17. Bc7 {[%emt 0:00:17]} Qe7 {[%emt 0:00:00]} 18. e3 {[%emt 0:00:04]} Qxa3 {[%emt 0:00:00]} 19. Rc1 {[%emt 0:00:07]} a5 {[%emt 0:00:00]} 20. Bd6 {[%emt 0:00:03]} Qa4 {[%emt 0:00:00]} 21. Ra1 {[%emt 0:00:27]} Qc4 {[%emt 0:00:00]} 22. Rfc1 {[%emt 0:00:03]} a4 {[%emt 0:00:00]} 23. Bf1 {[%emt 0:00:02]} Qb3 {[%emt 0:00:00]} 24. c4 {[%emt 0:00:07]} Qb6 {[%emt 0:00:00]} 25. c5 {[%emt 0:00:05]} Qd8 {[%emt 0:00:00]} 26. Bh3 {[%emt 0:00:19]} a3 {[%emt 0:00:00]} 27. Ra2 {[%emt 0:00:04]} Nf6 {[%emt 0:00:00]} 28. Rca1 {[%emt 0:00:14]} Ne4 {[%emt 0:00:00]} 29. Rxa3 {[%emt 0:00:08]} Rxa3 {[%emt 0:00:00]} 30. Rxa3 {[%emt 0:00:00]} Ng5 {[%emt 0:00:00]} 31. Bg2 {[%emt 0:00:03]} Qd7 {[%emt 0:00:00]} 32. h4 {[%emt 0:00:07]} Ne4 {[%emt 0:00:00]} 33. Qf3 {[%emt 0:00:01]} Nd2 {[%emt 0:00:00]} 34. Qe2 {[%emt 0:00:05]} Nc4 {[%emt 0:00:00]} 35. Ra7 {[%emt 0:00:01]} Be4 {[%emt 0:00:00]} 36. Bf4 {[%emt 0:00:02]} Bxg2 {[%emt 0:00:00]} 37. Kxg2 {[%emt 0:00:00]} Qe7 {[%emt 0:00:00]} 38. Qc2 {[%emt 0:00:02]} g5 {[%emt 0:00:00]} 39. hxg5 {[%emt 0:00:01]} hxg5 {[%emt 0:00:00]} 40. Bd6 {[%emt 0:00:01]} Nxd6 {[%emt 0:00:00]} 41. cxd6 {[%emt 0:00:01]} Qd7 {[%emt 0:00:00]} 42. Qb3 {[%emt 0:00:02]} Rb8 {[%emt 0:00:00]} 43. Qb4 {[%emt 0:00:03]} Kg7 {[%emt 0:00:00]} 44. Qb6 {[%emt 0:00:04]} Qf5 {[%emt 0:00:00]} 45. Qc7 {[%emt 0:00:05]} Qe4+ {[%emt 0:00:00]} 46. Kg1 {[%emt 0:00:00]} Qb1+ {[%emt 0:00:00]} 47. Kh2 {[%emt 0:00:01]} Rh8+ {[%emt 0:00:00]} 48. Kg2 {[%emt 0:00:04]} Qh1# {[%emt 0:01:10]} 0-1

[Event "Austria Championship Blitz 2024"]
[Site "Innsbruck"]
[Date "2024.06.01"]
[Round "2.12"]
[White "Schranzhofer, Marco"]
[Black "Schnegg, Daniel"]
[Result "0-1"]
[ECO "B07"]
[WhiteElo "1908"]
[BlackElo "2115"]
[Annotator "RC"]
[PlyCount "138"]
[EventDate "2024.06.01"]
[EventType "swiss"]
[EventCountry "AUT"]
[SourceTitle "playchess.com"]
[Source "ChessBase"]
[SourceQuality "1"]
[TimeControl "180+2"]

1. e4 {[%emt 0:00:01]} d6 {[%emt 0:00:06]} 2. c3 {[%emt 0:00:01]} g6 {[%emt 0:00:01]} 3. Qc2 {[%emt 0:00:01]} Bg7 {[%emt 0:00:01]} 4. d4 {[%emt 0:00:01]} e6 {[%emt 0:00:01]} 5. Nf3 {[%emt 0:00:02]} Ne7 {[%emt 0:00:01]} 6. Be2 {[%emt 0:00:05]} O-O {[%emt 0:00:02]} 7. Bg5 {[%emt 0:00:07]} h6 {[%emt 0:00:01]} 8. Bxe7 {[%emt 0:00:01]} Qxe7 {[%emt 0:00:02]} 9. O-O {[%emt 0:00:02]} b6 {[%emt 0:00:02]} 10. Nbd2 {[%emt 0:00:02]} Bb7 {[%emt 0:00:00]} 11. Rfe1 {[%emt 0:00:01]} Nd7 {[%emt 0:00:02]} 12. a4 {[%emt 0:00:02]} c5 {[%emt 0:00:02]} 13. a5 {[%emt 0:00:02]} Rfc8 {[%emt 0:00:05]} 14. axb6 {[%emt 0:00:02]} axb6 {[%emt 0:00:01]} 15. Qb3 {[%emt 0:00:35]} d5 {[%emt 0:00:07]} 16. exd5 {[%emt 0:00:15]} Bxd5 {[%emt 0:00:02]} 17. Rxa8 {[%emt 0:00:06]} Rxa8 {[%emt 0:00:03]} 18. Bc4 {[%emt 0:00:08]} Qd6 {[%emt 0:00:21]} 19. Bxd5 {[%emt 0:00:03]} exd5 {[%emt 0:00:03]} 20. h3 {[%emt 0:00:39]} c4 {[%emt 0:00:06]} 21. Qb5 {[%emt 0:00:07]} Ra5 {[%emt 0:00:05]} 22. Nxc4 {[%emt 0:00:06]} dxc4 {[%emt 0:00:09]} 23. Qxc4 {[%emt 0:00:01]} Nf6 {[%emt 0:00:16]} 24. b4 {[%emt 0:00:06]} Ra8 {[%emt 0:00:04]} 25. Ne5 {[%emt 0:00:03]} Qd5 {[%emt 0:00:08]} 26. Qc7 {[%emt 0:00:07]} b5 {[%emt 0:00:04]} 27. Nc6 {[%emt 0:00:07]} Qd7 {[%emt 0:00:28]} 28. Re7 {[%emt 0:00:30]} Qxc7 {[%emt 0:01:35]} 29. Rxc7 {[%emt 0:00:01]} Nd5 {[%emt 0:00:00]} 30. Ne7+ {[%emt 0:00:03]} Nxe7 {[%emt 0:00:00]} 31. Rxe7 {[%emt 0:00:01]} Rc8 {[%emt 0:00:00]} 32. Re3 {[%emt 0:00:05]} Bf6 {[%emt 0:00:00]} 33. g3 {[%emt 0:00:07]} Kf8 {[%emt 0:00:00]} 34. Kf1 {[%emt 0:00:01]} Re8 {[%emt 0:00:00]} 35. Ke2 {[%emt 0:00:01]} Ra8 {[%emt 0:00:00]} 36. Kd3 {[%emt 0:00:04]} Ra2 {[%emt 0:00:16]} 37. Rf3 Bg5 {[%emt 0:00:00]} 38. h4 {[%emt 0:00:06]} Rd2+ {[%emt 0:00:00]} 39. Ke4 {[%emt 0:00:03]} Re2+ {[%emt 0:00:00]} 40. Kd3 {[%emt 0:00:07]} Rd2+ {[%emt 0:00:00]} 41. Ke4 {[%emt 0:00:00]} Be7 {[%emt 0:00:00]} 42. Kd5 {[%emt 0:00:02]} g5 {[%emt 0:00:00]} 43. hxg5 {[%emt 0:00:04]} hxg5 {[%emt 0:00:00]} 44. Rf5 {[%emt 0:00:04]} Rd3 {[%emt 0:00:00]} 45. c4 {[%emt 0:00:04]} bxc4 {[%emt 0:00:00]} 46. Kxc4 {[%emt 0:00:00]} Rd2 {[%emt 0:00:00]} 47. g4 {[%emt 0:00:09]} Rb2 {[%emt 0:00:00]} 48. b5 {[%emt 0:00:01]} Rb4+ {[%emt 0:00:00]} 49. Kd3 {[%emt 0:00:03]} Ke8 {[%emt 0:00:00]} 50. f3 {[%emt 0:00:04]} f6 {[%emt 0:00:00]} 51. Ke4 {[%emt 0:00:05]} Kd7 {[%emt 0:00:00]} 52. Kd3 {[%emt 0:00:02]} Kc7 {[%emt 0:00:00]} 53. Kc3 {[%emt 0:00:02]} Kb6 {[%emt 0:00:00]} 54. Rxf6+ {[%emt 0:00:02]} Bxf6 {[%emt 0:00:00]} 55. Kxb4 {[%emt 0:00:01]} Bxd4 {[%emt 0:00:00]} 56. Kc4 {[%emt 0:00:00]} Be3 {[%emt 0:00:00]} 57. Kb4 {[%emt 0:00:03]} Bc5+ {[%emt 0:00:00]} 58. Kc4 {[%emt 0:00:01]} Be7 {[%emt 0:00:00]} 59. Kd5 {[%emt 0:00:02]} Kxb5 60. f4 {[%emt 0:00:03]} gxf4 {[%emt 0:00:00]} 61. Ke4 {[%emt 0:00:01]} Bg5 {[%emt 0:00:00]} 62. Kf5 {[%emt 0:00:01]} Bh6 {[%emt 0:00:00]} 63. Kg6 {[%emt 0:00:01]} Bf8 {[%emt 0:00:00]} 64. Kf5 {[%emt 0:00:01]} Bd6 {[%emt 0:00:00]} 65. g5 {[%emt 0:00:00]} f3 {[%emt 0:00:00]} 66. g6 {[%emt 0:00:01]} Bf8 {[%emt 0:00:00]} 67. Ke6 {[%emt 0:00:03]} f2 {[%emt 0:00:00]} 68. Kf7 {[%emt 0:00:01]} f1=Q+ {[%emt 0:00:00]} 69. Kg8 {[%emt 0:00:01]} Qf6 {[%emt 0:00:00]} 0-1